[Event "Titled Tuesday Blitz January 03 Early 2023"]
[White "gshwbedhkhd"]
[Black "Nakamura, Hikaru"]
[BlackFideId "2016192"]
[WhiteElo "2529"]
[BlackElo "2775"]
[Result "0-1"]
[Round "01"]
[TimeControl "180+2"]
[Date "2023.01.03"]
[WhiteClock "0:00:08"]
[BlackClock "0:01:20"]

1. e4 {[%clk 0:02:58]}  g6 {[%clk 0:02:56]} 2. d4 {[%clk 0:02:58]}  Bg7 {[%clk 0:02:56]} 3. Nc3 {[%clk 0:02:58]}  a6 {[%clk 0:02:54]} 4. f4 {[%clk 0:02:57]}  c6 {[%clk 0:02:54]} 5. Nf3 {[%clk 0:02:56]}  d5 {[%clk 0:02:54]} 6. e5 {[%clk 0:02:53]}  Bg4 {[%clk 0:02:55]} 7. Be3 {[%clk 0:02:47]}  h5 {[%clk 0:02:54]} 8. Bd3 {[%clk 0:02:29]}  Nh6 {[%clk 0:02:52]} 9. h3 {[%clk 0:02:13]}  Bxf3 {[%clk 0:02:52]} 10. Qxf3 {[%clk 0:02:14]}  Nf5 {[%clk 0:02:52]} 11. g3 {[%clk 0:02:12]}  Nxe3 {[%clk 0:02:50]} 12. Qxe3 {[%clk 0:02:13]}  e6 {[%clk 0:02:51]} 13. Ne2 {[%clk 0:02:04]}  Nd7 {[%clk 0:02:50]} 14. Qf3 {[%clk 0:01:56]}  c5 {[%clk 0:02:48]} 15. c3 {[%clk 0:01:55]}  Qb6 {[%clk 0:02:46]} 16. Rb1 {[%clk 0:01:51]}  cxd4 {[%clk 0:02:39]} 17. cxd4 {[%clk 0:01:33]}  Nb8 {[%clk 0:02:28]} 18. a3 {[%clk 0:01:19]}  Nc6 {[%clk 0:02:27]} 19. Qe3 {[%clk 0:01:19]}  h4 {[%clk 0:02:24]} 20. g4 {[%clk 0:01:18]}  g5 {[%clk 0:02:24]} 21. Rf1 {[%clk 0:01:10]}  Rf8 {[%clk 0:02:07]} 22. b4 {[%clk 0:01:07]}  gxf4 {[%clk 0:01:43]} 23. Qxf4 {[%clk 0:01:08]}  f6 {[%clk 0:01:43]} 24. exf6 {[%clk 0:00:45]}  Rxf6 {[%clk 0:01:44]} 25. Qd6 {[%clk 0:00:44]}  Qd8 {[%clk 0:01:37]} 26. Qh2 {[%clk 0:00:19]}  Kd7 {[%clk 0:01:22]} 27. b5 {[%clk 0:00:15]}  Qa5+ {[%clk 0:01:21]} 28. Rb4 {[%clk 0:00:08]}  Nxb4 {[%clk 0:01:21]} 29. axb4 {[%clk 0:00:08]}  Qxb4+ {[%clk 0:01:20]} 0-1


[Site "https://www.chess.com"]

[Event "Titled Tuesday Blitz January 03 Early 2023"]
[White "Duda, Jan-Krzysztof"]
[Black "Borrmann, Laurenz"]
[WhiteFideId "1170546"]
[BlackFideId "312187930"]
[WhiteElo "2724"]
[BlackElo "2304"]
[Result "1-0"]
[Round "01"]
[TimeControl "180+2"]
[Date "2023.01.03"]
[WhiteClock "0:00:57"]
[BlackClock "0:00:25"]

1. e4 {[%clk 0:03:00]}  c6 {[%clk 0:02:58]} 2. Nf3 {[%clk 0:03:00]}  d5 {[%clk 0:02:58]} 3. exd5 {[%clk 0:03:00]}  cxd5 {[%clk 0:02:59]} 4. d4 {[%clk 0:03:00]}  Nc6 {[%clk 0:02:58]} 5. Ne5 {[%clk 0:03:00]}  a6 {[%clk 0:02:55]} 6. c3 {[%clk 0:02:59]}  Nxe5 {[%clk 0:02:53]} 7. dxe5 {[%clk 0:03:00]}  Bf5 {[%clk 0:02:52]} 8. Nd2 {[%clk 0:02:58]}  e6 {[%clk 0:02:41]} 9. Nf3 {[%clk 0:02:58]}  Ne7 {[%clk 0:02:29]} 10. Nd4 {[%clk 0:02:58]}  Nc6 {[%clk 0:02:21]} 11. Qa4 {[%clk 0:02:45]}  Qd7 {[%clk 0:02:10]} 12. Bb5 {[%clk 0:02:44]}  Rc8 {[%clk 0:02:00]} 13. Bxc6 {[%clk 0:02:44]}  bxc6 {[%clk 0:01:59]} 14. Qxa6 {[%clk 0:02:44]}  Bg6 {[%clk 0:01:52]} 15. Bg5 {[%clk 0:02:33]}  Bc5 {[%clk 0:01:46]} 16. Nb3 {[%clk 0:01:53]}  Ba7 {[%clk 0:01:43]} 17. O-O {[%clk 0:01:54]}  O-O {[%clk 0:01:40]} 18. Qe2 {[%clk 0:01:52]}  c5 {[%clk 0:01:31]} 19. Rfd1 {[%clk 0:01:51]}  Rb8 {[%clk 0:01:28]} 20. h4 {[%clk 0:01:48]}  h6 {[%clk 0:01:26]} 21. Be3 {[%clk 0:01:47]}  Qc7 {[%clk 0:01:18]} 22. h5 {[%clk 0:01:47]}  Be4 {[%clk 0:01:16]} 23. f3 {[%clk 0:01:37]}  Bf5 {[%clk 0:01:15]} 24. Bf2 {[%clk 0:01:35]}  c4 {[%clk 0:01:00]} 25. Bxa7 {[%clk 0:01:23]}  Qxa7+ {[%clk 0:01:01]} 26. Nd4 {[%clk 0:01:23]}  Bd3 {[%clk 0:01:00]} 27. Qf2 {[%clk 0:01:23]}  Qc7 {[%clk 0:00:53]} 28. Re1 {[%clk 0:01:14]}  Qb6 {[%clk 0:00:49]} 29. b4 {[%clk 0:01:10]}  cxb3 {[%clk 0:00:48]} 30. axb3 {[%clk 0:01:11]}  Rfc8 {[%clk 0:00:48]} 31. Qd2 {[%clk 0:01:10]}  Bh7 {[%clk 0:00:44]} 32. Re3 {[%clk 0:01:08]}  Qc5 {[%clk 0:00:41]} 33. Kh2 {[%clk 0:01:06]}  Qe7 {[%clk 0:00:39]} 34. g4 {[%clk 0:00:59]}  Kh8 {[%clk 0:00:33]} 35. Kg3 {[%clk 0:00:58]}  Re8 {[%clk 0:00:31]} 36. Nc6 {[%clk 0:00:58]}  Qc7 {[%clk 0:00:29]} 37. Nxb8 {[%clk 0:00:58]}  Qxb8 {[%clk 0:00:29]} 38. b4 {[%clk 0:00:58]}  f6 {[%clk 0:00:28]} 39. Qd4 {[%clk 0:00:57]}  fxe5 {[%clk 0:00:26]} 40. Qxe5 {[%clk 0:00:57]}  Qc8 {[%clk 0:00:26]} 41. Ra7 {[%clk 0:00:57]}  Rg8 {[%clk 0:00:25]} 42. g5 {[%clk 0:00:57]} 1-0


[Site "https://www.chess.com"]

[Event "Titled Tuesday Blitz January 03 Early 2023"]
[White "Parpiev, Isaak"]
[Black "Erigaisi Arjun"]
[WhiteFideId "34281576"]
[BlackFideId "35009192"]
[WhiteElo "2167"]
[BlackElo "2701"]
[Result "0-1"]
[Round "01"]
[TimeControl "180+2"]
[Date "2023.01.03"]
[WhiteClock "0:00:52"]
[BlackClock "0:02:23"]

1. e4 {[%clk 0:02:59]}  c6 {[%clk 0:02:58]} 2. d4 {[%clk 0:02:58]}  d5 {[%clk 0:02:58]} 3. exd5 {[%clk 0:02:59]}  cxd5 {[%clk 0:02:59]} 4. c4 {[%clk 0:02:59]}  Nf6 {[%clk 0:02:59]} 5. Nc3 {[%clk 0:02:59]}  g6 {[%clk 0:02:56]} 6. cxd5 {[%clk 0:02:55]}  Nxd5 {[%clk 0:02:57]} 7. Bc4 {[%clk 0:02:53]}  Nb6 {[%clk 0:02:56]} 8. Bb3 {[%clk 0:02:52]}  Bg7 {[%clk 0:02:56]} 9. Nf3 {[%clk 0:02:52]}  O-O {[%clk 0:02:57]} 10. O-O {[%clk 0:02:51]}  Nc6 {[%clk 0:02:57]} 11. d5 {[%clk 0:02:45]}  Na5 {[%clk 0:02:57]} 12. h3 {[%clk 0:02:35]}  Bxc3 {[%clk 0:02:50]} 13. bxc3 {[%clk 0:02:34]}  Nxb3 {[%clk 0:02:51]} 14. axb3 {[%clk 0:02:23]}  Qxd5 {[%clk 0:02:52]} 15. c4 {[%clk 0:02:13]}  Qxd1 {[%clk 0:02:51]} 16. Rxd1 {[%clk 0:02:14]}  Bf5 {[%clk 0:02:49]} 17. Re1 {[%clk 0:02:14]}  Rfe8 {[%clk 0:02:42]} 18. Nd4 {[%clk 0:02:06]}  Bd7 {[%clk 0:02:42]} 19. Ba3 {[%clk 0:01:47]}  e5 {[%clk 0:02:41]} 20. Nf3 {[%clk 0:01:47]}  f6 {[%clk 0:02:41]} 21. Bb4 {[%clk 0:01:32]}  Bc6 {[%clk 0:02:41]} 22. Nd2 {[%clk 0:01:30]}  Nd7 {[%clk 0:02:40]} 23. f3 {[%clk 0:01:26]}  b6 {[%clk 0:02:39]} 24. Kf2 {[%clk 0:01:25]}  a5 {[%clk 0:02:38]} 25. Bc3 {[%clk 0:01:23]}  Nc5 {[%clk 0:02:38]} 26. Re3 {[%clk 0:01:20]}  Red8 {[%clk 0:02:33]} 27. Ke2 {[%clk 0:01:02]}  Ne6 {[%clk 0:02:30]} 28. g3 {[%clk 0:00:57]}  Rd7 {[%clk 0:02:26]} 29. b4 {[%clk 0:00:54]}  axb4 {[%clk 0:02:21]} 30. Rxa8+ {[%clk 0:00:52]}  Bxa8 {[%clk 0:02:22]} 31. Bxb4 {[%clk 0:00:53]}  Nd4+ {[%clk 0:02:23]} 32. Kf2 {[%clk 0:00:52]}  Nc2 {[%clk 0:02:23]} 0-1


[Site "https://www.chess.com"]

[Event "Titled Tuesday Blitz January 03 Early 2023"]
[White "Bortnyk, Olexandr"]
[Black "Garv Gaur"]
[WhiteFideId "14120828"]
[BlackFideId "45030839"]
[WhiteElo "2605"]
[BlackElo "2006"]
[Result "1-0"]
[Round "01"]
[TimeControl "180+2"]
[Date "2023.01.03"]
[WhiteClock "0:00:27"]
[BlackClock "0:00:04"]

1. d4 {[%clk 0:03:00]}  Nf6 {[%clk 0:02:57]} 2. Bf4 {[%clk 0:03:00]}  d5 {[%clk 0:02:57]} 3. Nc3 {[%clk 0:03:00]}  a6 {[%clk 0:02:55]} 4. e3 {[%clk 0:03:00]}  c5 {[%clk 0:02:55]} 5. dxc5 {[%clk 0:02:59]}  Nc6 {[%clk 0:02:54]} 6. Nf3 {[%clk 0:02:57]}  e6 {[%clk 0:02:54]} 7. Na4 {[%clk 0:02:56]}  Bxc5 {[%clk 0:02:44]} 8. Nxc5 {[%clk 0:02:53]}  Qa5+ {[%clk 0:02:44]} 9. c3 {[%clk 0:02:51]}  Qxc5 {[%clk 0:02:40]} 10. Bd3 {[%clk 0:02:43]}  O-O {[%clk 0:02:37]} 11. O-O {[%clk 0:02:42]}  h6 {[%clk 0:02:36]} 12. Ne5 {[%clk 0:02:38]}  Qe7 {[%clk 0:02:29]} 13. Qf3 {[%clk 0:02:25]}  Nd7 {[%clk 0:02:24]} 14. Nxd7 {[%clk 0:01:55]}  Bxd7 {[%clk 0:02:21]} 15. Qg3 {[%clk 0:01:56]}  Qf6 {[%clk 0:02:19]} 16. e4 {[%clk 0:01:56]}  e5 {[%clk 0:02:18]} 17. Be3 {[%clk 0:01:50]}  d4 {[%clk 0:02:11]} 18. cxd4 {[%clk 0:01:48]}  exd4 {[%clk 0:02:10]} 19. Bf4 {[%clk 0:01:46]}  Rfe8 {[%clk 0:02:10]} 20. a3 {[%clk 0:01:35]}  Ne5 {[%clk 0:02:09]} 21. Bxe5 {[%clk 0:01:35]}  Qxe5 {[%clk 0:01:31]} 22. f4 {[%clk 0:01:36]}  Qa5 {[%clk 0:01:05]} 23. e5 {[%clk 0:01:30]}  Bb5 {[%clk 0:00:57]} 24. Rad1 {[%clk 0:01:29]}  Rad8 {[%clk 0:00:54]} 25. b4 {[%clk 0:01:25]}  Qc7 {[%clk 0:00:48]} 26. Bxb5 {[%clk 0:01:24]}  axb5 {[%clk 0:00:47]} 27. Rd3 {[%clk 0:01:23]}  Rd5 {[%clk 0:00:45]} 28. Rfd1 {[%clk 0:01:23]}  Red8 {[%clk 0:00:45]} 29. h3 {[%clk 0:01:23]}  Qe7 {[%clk 0:00:44]} 30. Qf2 {[%clk 0:01:22]}  Qd7 {[%clk 0:00:43]} 31. Qf3 {[%clk 0:01:20]}  Qc6 {[%clk 0:00:40]} 32. Kh2 {[%clk 0:01:18]}  Qc4 {[%clk 0:00:37]} 33. Qe4 {[%clk 0:01:16]}  Qc2 {[%clk 0:00:22]} 34. R1d2 {[%clk 0:01:12]}  Qc4 {[%clk 0:00:22]} 35. Kg1 {[%clk 0:00:44]}  Qc1+ {[%clk 0:00:21]} 36. Kf2 {[%clk 0:00:45]}  Qc4 {[%clk 0:00:20]} 37. Kg3 {[%clk 0:00:38]}  Qc1 {[%clk 0:00:17]} 38. Rd1 {[%clk 0:00:31]}  Qc2 {[%clk 0:00:16]} 39. Kh2 {[%clk 0:00:31]}  Qc4 {[%clk 0:00:13]} 40. R1d2 {[%clk 0:00:30]}  R5d7 {[%clk 0:00:07]} 41. Rg3 {[%clk 0:00:26]}  d3 {[%clk 0:00:06]} 42. Qe3 {[%clk 0:00:26]}  Qd4 {[%clk 0:00:04]} 43. f5 {[%clk 0:00:26]}  Qxe3 {[%clk 0:00:04]} 44. Rxe3 {[%clk 0:00:27]}  Kf8 {[%clk 0:00:05]} 45. Kg3 {[%clk 0:00:27]}  Ke7 {[%clk 0:00:05]} 46. Re4 {[%clk 0:00:27]}  Rd4 {[%clk 0:00:05]} 47. Kf3 {[%clk 0:00:27]}  R8d5 {[%clk 0:00:04]} 48. Ke3 {[%clk 0:00:27]}  Rc4 {[%clk 0:00:02]} 49. Rxd3 {[%clk 0:00:27]}  Rxd3+ {[%clk 0:00:02]} 50. Kxd3 {[%clk 0:00:28]}  Rc1 {[%clk 0:00:03]} 51. Kd4 {[%clk 0:00:27]}  Ra1 {[%clk 0:00:03]} 52. Re3 {[%clk 0:00:27]}  Rxa3 {[%clk 0:00:04]} 53. Rxa3 {[%clk 0:00:27]} 1-0


[Site "https://www.chess.com"]

[Event "Titled Tuesday Blitz January 03 Early 2023"]
[White "Taboas Rodriguez, Daniel"]
[Black "Jobava, Baadur"]
[WhiteFideId "2208466"]
[BlackFideId "13601520"]
[WhiteElo "2371"]
[BlackElo "2578"]
[Result "0-1"]
[Round "01"]
[TimeControl "180+2"]
[Date "2023.01.03"]
[WhiteClock "0:00:04"]
[BlackClock "0:00:04"]

1. d4 {[%clk 0:02:59]}  d5 {[%clk 0:02:54]} 2. Nf3 {[%clk 0:03:00]}  Nf6 {[%clk 0:02:53]} 3. c4 {[%clk 0:03:01]}  dxc4 {[%clk 0:02:54]} 4. e3 {[%clk 0:03:01]}  Bg4 {[%clk 0:02:55]} 5. Bxc4 {[%clk 0:03:01]}  e6 {[%clk 0:02:56]} 6. Be2 {[%clk 0:03:00]}  Nbd7 {[%clk 0:02:54]} 7. h3 {[%clk 0:02:58]}  Bh5 {[%clk 0:02:54]} 8. O-O {[%clk 0:02:59]}  Be7 {[%clk 0:02:55]} 9. b3 {[%clk 0:02:59]}  O-O {[%clk 0:02:55]} 10. Bb2 {[%clk 0:02:59]}  c5 {[%clk 0:02:55]} 11. Nc3 {[%clk 0:02:57]}  Rc8 {[%clk 0:02:54]} 12. Rc1 {[%clk 0:02:57]}  a6 {[%clk 0:02:54]} 13. d5 {[%clk 0:02:53]}  exd5 {[%clk 0:02:48]} 14. Nxd5 {[%clk 0:02:54]}  h6 {[%clk 0:02:34]} 15. Qd2 {[%clk 0:02:27]}  Nb6 {[%clk 0:01:54]} 16. Nxf6+ {[%clk 0:02:05]}  Bxf6 {[%clk 0:01:54]} 17. Qxd8 {[%clk 0:02:05]}  Rfxd8 {[%clk 0:01:43]} 18. Bxf6 {[%clk 0:02:06]}  gxf6 {[%clk 0:01:44]} 19. Rfd1 {[%clk 0:02:06]}  Rxd1+ {[%clk 0:01:38]} 20. Rxd1 {[%clk 0:01:59]}  Kg7 {[%clk 0:01:29]} 21. Kf1 {[%clk 0:01:58]}  Rc7 {[%clk 0:01:27]} 22. Nh4 {[%clk 0:01:56]}  Bg6 {[%clk 0:01:27]} 23. Rc1 {[%clk 0:01:52]}  Nd7 {[%clk 0:01:24]} 24. f4 {[%clk 0:01:41]}  Be4 {[%clk 0:01:22]} 25. Bf3 {[%clk 0:01:39]}  Bxf3 {[%clk 0:01:22]} 26. gxf3 {[%clk 0:01:40]}  h5 {[%clk 0:01:16]} 27. Ke2 {[%clk 0:01:37]}  Kf8 {[%clk 0:01:16]} 28. Nf5 {[%clk 0:01:36]}  b5 {[%clk 0:01:11]} 29. Ng3 {[%clk 0:01:34]}  h4 {[%clk 0:01:10]} 30. Nf5 {[%clk 0:01:35]}  Nb6 {[%clk 0:01:10]} 31. Nxh4 {[%clk 0:01:34]}  c4 {[%clk 0:01:10]} 32. bxc4 {[%clk 0:01:35]}  Nxc4 {[%clk 0:01:09]} 33. Nf5 {[%clk 0:01:33]}  a5 {[%clk 0:00:52]} 34. h4 {[%clk 0:01:26]}  a4 {[%clk 0:00:51]} 35. Nd4 {[%clk 0:01:25]}  b4 {[%clk 0:00:48]} 36. Nb5 {[%clk 0:01:00]}  Rc6 {[%clk 0:00:48]} 37. Na7 {[%clk 0:00:51]}  Rc5 {[%clk 0:00:48]} 38. Nb5 {[%clk 0:00:44]}  b3 {[%clk 0:00:36]} 39. axb3 {[%clk 0:00:45]}  axb3 {[%clk 0:00:37]} 40. Nd4 {[%clk 0:00:33]}  b2 {[%clk 0:00:37]} 41. Rb1 {[%clk 0:00:33]}  Ra5 {[%clk 0:00:38]} 42. Kd3 {[%clk 0:00:15]}  Ra1 {[%clk 0:00:38]} 43. Kc2 {[%clk 0:00:11]}  Na3+ {[%clk 0:00:36]} 44. Kxb2 {[%clk 0:00:11]}  Rxb1+ {[%clk 0:00:37]} 45. Kxa3 {[%clk 0:00:11]}  Rh1 {[%clk 0:00:30]} 46. Nf5 {[%clk 0:00:11]}  Rh3 {[%clk 0:00:30]} 47. Nd4 {[%clk 0:00:09]}  Rxh4 {[%clk 0:00:30]} 48. Kb4 {[%clk 0:00:09]}  Rh1 {[%clk 0:00:29]} 49. Kc4 {[%clk 0:00:09]}  Ke7 {[%clk 0:00:27]} 50. Kd5 {[%clk 0:00:09]}  Ra1 {[%clk 0:00:26]} 51. Nf5+ {[%clk 0:00:09]}  Kd7 {[%clk 0:00:27]} 52. Nd4 {[%clk 0:00:09]}  Ra5+ {[%clk 0:00:27]} 53. Ke4 {[%clk 0:00:09]}  Kd6 {[%clk 0:00:27]} 54. Nf5+ {[%clk 0:00:09]}  Kc5 {[%clk 0:00:28]} 55. Nd4 {[%clk 0:00:10]}  Kc4 {[%clk 0:00:28]} 56. Nf5 {[%clk 0:00:08]}  Ra6 {[%clk 0:00:23]} 57. Nh6 {[%clk 0:00:08]}  Ra5 {[%clk 0:00:17]} 58. Nf5 {[%clk 0:00:01]}  Kc3 {[%clk 0:00:17]} 59. Nd6 {[%clk 0:00:01]}  Rc5 {[%clk 0:00:02]} 60. Nf5 {[%clk 0:00:01]}  Kd2 {[%clk 0:00:03]} 61. Nd6 {[%clk 0:00:01]}  Ke2 {[%clk 0:00:03]} 62. Nxf7 {[%clk 0:00:01]}  f5+ {[%clk 0:00:02]} 63. Kd4 {[%clk 0:00:01]}  Ra5 {[%clk 0:00:03]} 64. Nd6 {[%clk 0:00:02]}  Ra4+ {[%clk 0:00:03]} 65. Ke5 {[%clk 0:00:02]}  Kxe3 {[%clk 0:00:04]} 66. Nxf5+ {[%clk 0:00:02]}  Kxf3 {[%clk 0:00:04]} 67. Nd4+ {[%clk 0:00:03]}  Kg4 {[%clk 0:00:04]} 68. Ne6 {[%clk 0:00:03]}  Ra5+ {[%clk 0:00:04]} 69. Kf6 {[%clk 0:00:03]}  Rf5+ {[%clk 0:00:03]} 70. Ke7 {[%clk 0:00:03]}  Ra5 {[%clk 0:00:04]} 71. Kd6 {[%clk 0:00:04]}  Kf5 {[%clk 0:00:04]} 72. Ke7 {[%clk 0:00:04]}  Ra7+ {[%clk 0:00:04]} 0-1


[Site "https://www.chess.com"]

[Event "Titled Tuesday Blitz January 03 Early 2023"]
[White "Martinez Alcantara, Jose Eduardo"]
[Black "Kvaloy, Aksel Bu"]
[WhiteFideId "3805662"]
[BlackFideId "1528815"]
[WhiteElo "2619"]
[BlackElo "2321"]
[Result "1-0"]
[Round "01"]
[TimeControl "180+2"]
[Date "2023.01.03"]
[WhiteClock "0:01:21"]
[BlackClock "0:00:34"]

1. e4 {[%clk 0:03:00]}  e5 {[%clk 0:02:54]} 2. Nf3 {[%clk 0:03:00]}  Nf6 {[%clk 0:02:48]} 3. Nxe5 {[%clk 0:03:00]}  Nc6 {[%clk 0:02:48]} 4. Nf3 {[%clk 0:02:58]}  Nxe4 {[%clk 0:02:48]} 5. Nc3 {[%clk 0:02:59]}  Nxc3 {[%clk 0:02:47]} 6. dxc3 {[%clk 0:02:59]}  d5 {[%clk 0:02:47]} 7. Be3 {[%clk 0:02:59]}  Be6 {[%clk 0:02:44]} 8. Qd2 {[%clk 0:02:59]}  Qd7 {[%clk 0:02:44]} 9. O-O-O {[%clk 0:02:59]}  O-O-O {[%clk 0:02:44]} 10. Bb5 {[%clk 0:02:58]}  a6 {[%clk 0:02:36]} 11. Ne5 {[%clk 0:02:54]}  Qd6 {[%clk 0:02:24]} 12. Nxc6 {[%clk 0:02:54]}  bxc6 {[%clk 0:02:18]} 13. Bxa6+ {[%clk 0:02:55]}  Kb8 {[%clk 0:02:18]} 14. Be2 {[%clk 0:02:26]}  c5 {[%clk 0:02:10]} 15. Qd3 {[%clk 0:02:05]}  c4 {[%clk 0:02:04]} 16. Qd4 {[%clk 0:02:05]}  c5 {[%clk 0:02:01]} 17. Qf4 {[%clk 0:02:00]}  Qxf4 {[%clk 0:01:59]} 18. Bxf4+ {[%clk 0:02:01]}  Kb7 {[%clk 0:01:57]} 19. Bxc4 {[%clk 0:01:56]}  Be7 {[%clk 0:01:51]} 20. Be2 {[%clk 0:01:54]}  Bf6 {[%clk 0:01:46]} 21. Bf3 {[%clk 0:01:54]}  Kb6 {[%clk 0:01:39]} 22. Rhe1 {[%clk 0:01:52]}  Rd7 {[%clk 0:01:38]} 23. Be5 {[%clk 0:01:52]}  Bg5+ {[%clk 0:01:37]} 24. Kb1 {[%clk 0:01:52]}  Rg8 {[%clk 0:01:16]} 25. a3 {[%clk 0:01:52]}  Be7 {[%clk 0:01:15]} 26. b4 {[%clk 0:01:50]}  Ra8 {[%clk 0:01:11]} 27. Kb2 {[%clk 0:01:50]}  Rda7 {[%clk 0:01:08]} 28. Ra1 {[%clk 0:01:35]}  Kb5 {[%clk 0:00:49]} 29. Bxg7 {[%clk 0:01:26]}  cxb4 {[%clk 0:00:47]} 30. cxb4 {[%clk 0:01:27]}  Rxa3 {[%clk 0:00:45]} 31. Be2+ {[%clk 0:01:23]}  Kb6 {[%clk 0:00:38]} 32. Bd4+ {[%clk 0:01:21]}  Kc6 {[%clk 0:00:34]} 33. Rxa3 {[%clk 0:01:21]} 1-0


[Site "https://www.chess.com"]

[Event "Titled Tuesday Blitz January 03 Early 2023"]
[White "Sarana, Alexey"]
[Black "Lehtosaari, Mauri"]
[WhiteFideId "24133795"]
[BlackFideId "501999"]
[WhiteElo "2685"]
[BlackElo "2176"]
[Result "1-0"]
[Round "01"]
[TimeControl "180+2"]
[Date "2023.01.03"]
[WhiteClock "0:02:13"]
[BlackClock "0:00:57"]

1. d4 {[%clk 0:02:39]}  d5 {[%clk 0:02:59]} 2. c4 {[%clk 0:02:39]}  c6 {[%clk 0:02:59]} 3. Nf3 {[%clk 0:02:38]}  Nf6 {[%clk 0:02:58]} 4. Nc3 {[%clk 0:02:39]}  dxc4 {[%clk 0:02:58]} 5. a4 {[%clk 0:02:39]}  Bf5 {[%clk 0:02:50]} 6. Ne5 {[%clk 0:02:39]}  Nbd7 {[%clk 0:02:49]} 7. Nxc4 {[%clk 0:02:38]}  Nb6 {[%clk 0:02:45]} 8. Ne5 {[%clk 0:02:38]}  a5 {[%clk 0:02:45]} 9. e3 {[%clk 0:02:38]}  Nfd7 {[%clk 0:02:12]} 10. Nxf7 {[%clk 0:02:38]}  Kxf7 {[%clk 0:02:12]} 11. Qf3 {[%clk 0:02:38]}  e6 {[%clk 0:01:59]} 12. g4 {[%clk 0:02:37]}  g6 {[%clk 0:01:59]} 13. e4 {[%clk 0:02:37]}  Nf6 {[%clk 0:01:56]} 14. gxf5 {[%clk 0:02:36]}  Qxd4 {[%clk 0:01:54]} 15. fxe6+ {[%clk 0:02:34]}  Kg7 {[%clk 0:01:52]} 16. Be3 {[%clk 0:02:28]}  Qb4 {[%clk 0:01:52]} 17. O-O-O {[%clk 0:02:18]}  Nxa4 {[%clk 0:01:14]} 18. Nxa4 {[%clk 0:02:15]}  Qxa4 {[%clk 0:01:14]} 19. e5 {[%clk 0:02:14]}  Qa1+ {[%clk 0:01:07]} 20. Kc2 {[%clk 0:02:13]}  Qa4+ {[%clk 0:01:05]} 21. Kb1 {[%clk 0:02:12]}  Qe4+ {[%clk 0:01:05]} 22. Qxe4 {[%clk 0:02:13]}  Nxe4 {[%clk 0:01:06]} 23. Rd7+ {[%clk 0:02:12]}  Kg8 {[%clk 0:00:57]} 24. e7 {[%clk 0:02:13]} 1-0


[Site "https://www.chess.com"]

[Event "Titled Tuesday Blitz January 03 Early 2023"]
[White "Arias, Juan Cruz"]
[Black "Lazavik, Denis"]
[WhiteFideId "118540"]
[BlackFideId "13515110"]
[WhiteElo "2320"]
[BlackElo "2544"]
[Result "1-0"]
[Round "01"]
[TimeControl "180+2"]
[Date "2023.01.03"]
[WhiteClock "0:00:28"]
[BlackClock "0:00:09"]

1. d4 {[%clk 0:02:59]}  f5 {[%clk 0:03:00]} 2. Nf3 {[%clk 0:02:53]}  Nf6 {[%clk 0:03:00]} 3. e3 {[%clk 0:02:52]}  g6 {[%clk 0:02:59]} 4. b3 {[%clk 0:02:48]}  Bg7 {[%clk 0:02:59]} 5. Bc4 {[%clk 0:02:47]}  e6 {[%clk 0:02:53]} 6. Bb2 {[%clk 0:02:45]}  O-O {[%clk 0:02:51]} 7. Nbd2 {[%clk 0:02:44]}  d6 {[%clk 0:02:50]} 8. a4 {[%clk 0:02:39]}  Nc6 {[%clk 0:02:48]} 9. Qe2 {[%clk 0:02:34]}  Kh8 {[%clk 0:02:45]} 10. h4 {[%clk 0:02:30]}  Nh5 {[%clk 0:02:35]} 11. Ng5 {[%clk 0:02:26]}  Qe7 {[%clk 0:02:34]} 12. Ndf3 {[%clk 0:01:49]}  e5 {[%clk 0:02:05]} 13. dxe5 {[%clk 0:01:41]}  Nxe5 {[%clk 0:02:04]} 14. Nxe5 {[%clk 0:01:32]}  dxe5 {[%clk 0:02:03]} 15. O-O-O {[%clk 0:01:27]}  Bd7 {[%clk 0:01:45]} 16. Rd2 {[%clk 0:01:21]}  h6 {[%clk 0:01:30]} 17. Rhd1 {[%clk 0:01:18]}  Rad8 {[%clk 0:01:04]} 18. Nf3 {[%clk 0:01:05]}  e4 {[%clk 0:00:59]} 19. Nd4 {[%clk 0:01:04]}  Bc8 {[%clk 0:00:54]} 20. g3 {[%clk 0:01:03]}  a6 {[%clk 0:00:53]} 21. Kb1 {[%clk 0:00:51]}  c5 {[%clk 0:00:49]} 22. Ne6 {[%clk 0:00:45]}  Rxd2 {[%clk 0:00:43]} 23. Nxf8 {[%clk 0:00:45]}  Rxd1+ {[%clk 0:00:39]} 24. Qxd1 {[%clk 0:00:44]}  Qxf8 {[%clk 0:00:40]} 25. Bxg7+ {[%clk 0:00:39]}  Kxg7 {[%clk 0:00:37]} 26. Qd5 {[%clk 0:00:39]}  Nf6 {[%clk 0:00:36]} 27. Qe5 {[%clk 0:00:39]}  Bd7 {[%clk 0:00:12]} 28. a5 {[%clk 0:00:37]}  h5 {[%clk 0:00:10]} 29. Qc7 {[%clk 0:00:36]}  Qc8 {[%clk 0:00:10]} 30. Qd6 {[%clk 0:00:35]}  Qd8 {[%clk 0:00:10]} 31. Qxc5 {[%clk 0:00:34]}  Bc6 {[%clk 0:00:09]} 32. Qe5 {[%clk 0:00:33]}  Qe8 {[%clk 0:00:09]} 33. Qc7+ {[%clk 0:00:31]}  Qd7 {[%clk 0:00:09]} 34. Qe5 {[%clk 0:00:28]} 1-0


[Site "https://www.chess.com"]